[Event "Titled Tuesday Blitz July 26 Late 2022"]
[White "Vagman, Roy"]
[Black "Pham, Khoi"]
[WhiteFideId "2828995"]
[BlackFideId "1054988"]
[WhiteElo "1956"]
[BlackElo "2319"]
[Result "1-0"]
[Round "07"]
[TimeControl "180+1"]
[Date "2022.07.27"]
[WhiteClock "0:00:12"]
[BlackClock "0:00:15"]

1. e4 {[%clk 0:03:00]}  c6 {[%clk 0:02:58]} 2. d4 {[%clk 0:02:58]}  d5 {[%clk 0:02:56]} 3. exd5 {[%clk 0:02:59]}  cxd5 {[%clk 0:02:55]} 4. Bd3 {[%clk 0:02:59]}  Nc6 {[%clk 0:02:53]} 5. c3 {[%clk 0:03:00]}  Nf6 {[%clk 0:02:52]} 6. Ne2 {[%clk 0:02:59]}  g6 {[%clk 0:02:53]} 7. O-O {[%clk 0:02:59]}  Bg7 {[%clk 0:02:51]} 8. Qc2 {[%clk 0:02:50]}  O-O {[%clk 0:02:46]} 9. Nd2 {[%clk 0:02:50]}  Bd7 {[%clk 0:02:42]} 10. Nf3 {[%clk 0:02:50]}  Rc8 {[%clk 0:02:42]} 11. Qb1 {[%clk 0:02:49]}  a6 {[%clk 0:02:41]} 12. b4 {[%clk 0:02:47]}  Bg4 {[%clk 0:02:32]} 13. Nd2 {[%clk 0:02:39]}  e5 {[%clk 0:02:31]} 14. f3 {[%clk 0:02:22]}  Be6 {[%clk 0:02:27]} 15. Ba3 {[%clk 0:02:14]}  Re8 {[%clk 0:02:20]} 16. Nb3 {[%clk 0:02:12]}  e4 {[%clk 0:02:14]} 17. Bc2 {[%clk 0:01:55]}  exf3 {[%clk 0:02:12]} 18. gxf3 {[%clk 0:01:56]}  Bh3 {[%clk 0:02:10]} 19. Rf2 {[%clk 0:01:44]}  Nh5 {[%clk 0:01:58]} 20. Kh1 {[%clk 0:01:36]}  Qh4 {[%clk 0:01:49]} 21. Qg1 {[%clk 0:01:33]}  Bh6 {[%clk 0:01:44]} 22. Bc1 {[%clk 0:01:32]}  Bxc1 {[%clk 0:01:39]} 23. Rxc1 {[%clk 0:01:33]}  Re3 {[%clk 0:01:36]} 24. Bd1 {[%clk 0:01:07]}  Rce8 {[%clk 0:01:29]} 25. Nc5 {[%clk 0:01:06]}  Nf4 {[%clk 0:01:12]} 26. Rc2 {[%clk 0:00:49]}  Ne7 {[%clk 0:00:51]} 27. Qg3 {[%clk 0:00:43]}  Nf5 {[%clk 0:00:41]} 28. Qg1 {[%clk 0:00:26]}  Rxf3 {[%clk 0:00:17]} 29. Nxf4 {[%clk 0:00:17]}  Rxf4 {[%clk 0:00:15]} 30. Rxf4 {[%clk 0:00:10]}  Qxf4 {[%clk 0:00:16]} 31. Rf2 {[%clk 0:00:09]}  Qh4 {[%clk 0:00:11]} 32. Bf3 {[%clk 0:00:08]}  Re3 {[%clk 0:00:10]} 33. Nd7 {[%clk 0:00:06]}  Qe7 {[%clk 0:00:09]} 34. Ne5 {[%clk 0:00:06]}  f6 {[%clk 0:00:10]} 35. Bxd5+ {[%clk 0:00:06]}  Kh8 {[%clk 0:00:09]} 36. Rxf5 {[%clk 0:00:06]}  Bxf5 {[%clk 0:00:08]} 37. Qxe3 {[%clk 0:00:07]}  fxe5 {[%clk 0:00:08]} 38. Qxe5+ {[%clk 0:00:05]}  Qxe5 {[%clk 0:00:09]} 39. dxe5 {[%clk 0:00:06]}  Kg7 {[%clk 0:00:09]} 40. Kg2 {[%clk 0:00:06]}  Kf8 {[%clk 0:00:10]} 41. Bxb7 {[%clk 0:00:06]}  Ke7 {[%clk 0:00:09]} 42. Bxa6 {[%clk 0:00:06]}  Ke6 {[%clk 0:00:10]} 43. Bc4+ {[%clk 0:00:07]}  Kxe5 {[%clk 0:00:10]} 44. Kf3 {[%clk 0:00:07]}  Be4+ {[%clk 0:00:10]} 45. Ke3 {[%clk 0:00:07]}  Ba8 {[%clk 0:00:10]} 46. a4 {[%clk 0:00:08]}  g5 {[%clk 0:00:10]} 47. a5 {[%clk 0:00:09]}  g4 {[%clk 0:00:10]} 48. b5 {[%clk 0:00:09]}  h5 {[%clk 0:00:10]} 49. b6 {[%clk 0:00:10]}  Kd6 {[%clk 0:00:10]} 50. Bb5 {[%clk 0:00:09]}  Kc5 {[%clk 0:00:09]} 51. c4 {[%clk 0:00:09]}  h4 {[%clk 0:00:10]} 52. Ba6 {[%clk 0:00:05]}  g3 {[%clk 0:00:09]} 53. hxg3 {[%clk 0:00:05]}  h3 {[%clk 0:00:08]} 54. b7 {[%clk 0:00:06]}  Bxb7 {[%clk 0:00:08]} 55. Bxb7 {[%clk 0:00:06]}  Kxc4 {[%clk 0:00:09]} 56. a6 {[%clk 0:00:06]}  Kb5 {[%clk 0:00:09]} 57. a7 {[%clk 0:00:06]}  Kb6 {[%clk 0:00:10]} 58. a8=Q {[%clk 0:00:07]}  h2 {[%clk 0:00:11]} 59. Bh1 {[%clk 0:00:06]}  Kc7 {[%clk 0:00:11]} 60. Qg2 {[%clk 0:00:07]}  Kd8 {[%clk 0:00:11]} 61. Qxh2 {[%clk 0:00:08]}  Ke8 {[%clk 0:00:12]} 62. g4 {[%clk 0:00:09]}  Kf7 {[%clk 0:00:12]} 63. g5 {[%clk 0:00:10]}  Kg7 {[%clk 0:00:13]} 64. g6 {[%clk 0:00:11]}  Kxg6 {[%clk 0:00:14]} 65. Qg3+ {[%clk 0:00:11]}  Kh7 {[%clk 0:00:14]} 66. Be4+ {[%clk 0:00:12]}  Kh8 {[%clk 0:00:15]} 67. Qh4+ {[%clk 0:00:12]}  Kg7 {[%clk 0:00:15]} 68. Qe7+ {[%clk 0:00:12]}  Kh8 {[%clk 0:00:15]} 69. Qh7# {[%clk 0:00:12]} 1-0


[Site "https://www.chess.com"]

[Event "Titled Tuesday Blitz July 26 Late 2022"]
[White "Vasquez Schroeder, Rodrigo"]
[Black "Steinberg, Nitzan"]
[WhiteFideId "3400042"]
[BlackFideId "2801795"]
[WhiteElo "2567"]
[BlackElo "2471"]
[Result "1-0"]
[Round "07"]
[TimeControl "180+1"]
[Date "2022.07.26"]
[WhiteClock "0:00:04"]
[BlackClock "0:00:02"]

1. e4 {[%clk 0:03:00]}  c5 {[%clk 0:02:59]} 2. Nf3 {[%clk 0:03:00]}  e6 {[%clk 0:03:00]} 3. d4 {[%clk 0:03:00]}  cxd4 {[%clk 0:03:01]} 4. Nxd4 {[%clk 0:03:00]}  Nc6 {[%clk 0:03:02]} 5. Nb5 {[%clk 0:03:00]}  d6 {[%clk 0:03:00]} 6. c4 {[%clk 0:03:00]}  Nf6 {[%clk 0:02:59]} 7. N1c3 {[%clk 0:03:00]}  a6 {[%clk 0:02:59]} 8. Na3 {[%clk 0:02:59]}  Be7 {[%clk 0:02:59]} 9. Be2 {[%clk 0:03:00]}  O-O {[%clk 0:03:00]} 10. O-O {[%clk 0:03:00]}  b6 {[%clk 0:03:00]} 11. Be3 {[%clk 0:03:00]}  Bb7 {[%clk 0:03:00]} 12. Rc1 {[%clk 0:03:01]}  Rc8 {[%clk 0:02:59]} 13. Qd2 {[%clk 0:02:57]}  Ne5 {[%clk 0:02:55]} 14. f3 {[%clk 0:02:57]}  Qc7 {[%clk 0:02:55]} 15. Rfd1 {[%clk 0:02:56]}  Rfe8 {[%clk 0:02:47]} 16. Kh1 {[%clk 0:02:55]}  h6 {[%clk 0:02:41]} 17. Bf1 {[%clk 0:02:54]}  Ned7 {[%clk 0:02:41]} 18. Qf2 {[%clk 0:02:46]}  Bd8 {[%clk 0:02:39]} 19. Rc2 {[%clk 0:02:37]}  Qb8 {[%clk 0:02:38]} 20. Bf4 {[%clk 0:02:35]}  Bc7 {[%clk 0:02:38]} 21. h3 {[%clk 0:02:33]}  Ne5 {[%clk 0:02:31]} 22. Rcd2 {[%clk 0:02:20]}  Rcd8 {[%clk 0:02:20]} 23. Be3 {[%clk 0:02:07]}  Ba8 {[%clk 0:02:13]} 24. Nc2 {[%clk 0:02:03]}  Ng6 {[%clk 0:02:10]} 25. Nb4 {[%clk 0:02:00]}  Qb7 {[%clk 0:01:56]} 26. Bd4 {[%clk 0:01:53]}  Nh5 {[%clk 0:01:47]} 27. a4 {[%clk 0:01:40]}  Rf8 {[%clk 0:01:41]} 28. Bd3 {[%clk 0:01:20]}  Nhf4 {[%clk 0:01:35]} 29. Bb1 {[%clk 0:01:19]}  Ne5 {[%clk 0:01:31]} 30. b3 {[%clk 0:01:17]}  Nc6 {[%clk 0:01:28]} 31. Nxc6 {[%clk 0:01:16]}  Qxc6 {[%clk 0:01:29]} 32. Qg3 {[%clk 0:00:59]}  Ng6 {[%clk 0:01:15]} 33. Qg4 {[%clk 0:00:59]}  Ne5 {[%clk 0:00:52]} 34. Qg3 {[%clk 0:00:54]}  Ng6 {[%clk 0:00:50]} 35. Qg4 {[%clk 0:00:53]}  Ne5 {[%clk 0:00:48]} 36. Qh5 {[%clk 0:00:52]}  Qb7 {[%clk 0:00:35]} 37. f4 {[%clk 0:00:44]}  Nc6 {[%clk 0:00:35]} 38. Be3 {[%clk 0:00:39]}  Bb8 {[%clk 0:00:21]} 39. f5 {[%clk 0:00:34]}  exf5 {[%clk 0:00:17]} 40. exf5 {[%clk 0:00:29]}  f6 {[%clk 0:00:12]} 41. Nd5 {[%clk 0:00:27]}  b5 {[%clk 0:00:12]} 42. axb5 {[%clk 0:00:21]}  axb5 {[%clk 0:00:13]} 43. Be4 {[%clk 0:00:20]}  Rde8 {[%clk 0:00:11]} 44. Bf3 {[%clk 0:00:18]}  bxc4 {[%clk 0:00:10]} 45. bxc4 {[%clk 0:00:17]}  Qd7 {[%clk 0:00:09]} 46. Bf4 {[%clk 0:00:16]}  Ne5 {[%clk 0:00:09]} 47. Be2 {[%clk 0:00:16]}  Bc6 {[%clk 0:00:08]} 48. Bg3 {[%clk 0:00:13]}  Ba7 {[%clk 0:00:09]} 49. Nf4 {[%clk 0:00:12]}  Bc5 {[%clk 0:00:07]} 50. Ne6 {[%clk 0:00:12]}  Rxe6 {[%clk 0:00:07]} 51. fxe6 {[%clk 0:00:13]}  Qxe6 {[%clk 0:00:08]} 52. Bxe5 {[%clk 0:00:12]}  Qxe5 {[%clk 0:00:03]} 53. Qg4 {[%clk 0:00:10]}  Re8 {[%clk 0:00:01]} 54. Bf3 {[%clk 0:00:05]}  f5 {[%clk 0:00:01]} 55. Qh5 {[%clk 0:00:04]}  Bd7 {[%clk 0:00:02]} 56. Bd5+ {[%clk 0:00:04]}  Kh8 {[%clk 0:00:02]} 57. Rf1 {[%clk 0:00:04]}  Rf8 {[%clk 0:00:02]} 58. Re2 {[%clk 0:00:03]}  Qg3 {[%clk 0:00:02]} 59. Rf3 {[%clk 0:00:03]}  Qg5 {[%clk 0:00:01]} 60. Qxg5 {[%clk 0:00:03]}  hxg5 {[%clk 0:00:02]} 61. g3 {[%clk 0:00:04]} 1-0


[Site "https://www.chess.com"]

[Event "Titled Tuesday Blitz July 26 Late 2022"]
[White "Vivekananthan, Anish"]
[Black "Grigoriants, Sergey"]
[WhiteFideId "2090775"]
[BlackFideId "4130804"]
[WhiteElo "2782"]
[BlackElo "2502"]
[Result "1/2-1/2"]
[Round "07"]
[TimeControl "180+1"]
[Date "2022.07.26"]
[WhiteClock "0:00:05"]
[BlackClock "0:00:06"]

1. d4 {[%clk 0:03:00]}  Nf6 {[%clk 0:02:58]} 2. Nf3 {[%clk 0:03:00]}  d5 {[%clk 0:02:56]} 3. c4 {[%clk 0:03:00]}  e6 {[%clk 0:02:56]} 4. Nc3 {[%clk 0:03:00]}  c5 {[%clk 0:02:56]} 5. cxd5 {[%clk 0:02:58]}  Nxd5 {[%clk 0:02:55]} 6. e4 {[%clk 0:02:56]}  Nxc3 {[%clk 0:02:54]} 7. bxc3 {[%clk 0:02:57]}  cxd4 {[%clk 0:02:55]} 8. cxd4 {[%clk 0:02:58]}  Bb4+ {[%clk 0:02:55]} 9. Bd2 {[%clk 0:02:58]}  Bxd2+ {[%clk 0:02:56]} 10. Qxd2 {[%clk 0:02:59]}  O-O {[%clk 0:02:56]} 11. Bc4 {[%clk 0:02:59]}  Nd7 {[%clk 0:02:57]} 12. O-O {[%clk 0:02:58]}  b6 {[%clk 0:02:57]} 13. Rfe1 {[%clk 0:02:54]}  Bb7 {[%clk 0:02:58]} 14. Rad1 {[%clk 0:02:54]}  Rc8 {[%clk 0:02:58]} 15. Bb3 {[%clk 0:02:48]}  h6 {[%clk 0:02:59]} 16. h3 {[%clk 0:02:46]}  Nf6 {[%clk 0:02:59]} 17. Qf4 {[%clk 0:02:44]}  Qc7 {[%clk 0:02:58]} 18. Ne5 {[%clk 0:02:38]}  Nd7 {[%clk 0:02:53]} 19. Nd3 {[%clk 0:02:16]}  Rfd8 {[%clk 0:02:26]} 20. Qxc7 {[%clk 0:01:55]}  Rxc7 {[%clk 0:02:26]} 21. f3 {[%clk 0:01:55]}  Nb8 {[%clk 0:02:03]} 22. Nf4 {[%clk 0:01:43]}  Nc6 {[%clk 0:01:27]} 23. Bxe6 {[%clk 0:01:32]}  Nxd4 {[%clk 0:01:11]} 24. Bd5 {[%clk 0:01:04]}  Bxd5 {[%clk 0:00:48]} 25. Nxd5 {[%clk 0:01:04]}  Rc4 {[%clk 0:00:48]} 26. Rd2 {[%clk 0:00:48]}  Kf8 {[%clk 0:00:42]} 27. Red1 {[%clk 0:00:46]}  Ne6 {[%clk 0:00:39]} 28. Kf2 {[%clk 0:00:45]}  Rdc8 {[%clk 0:00:32]} 29. Ke3 {[%clk 0:00:45]}  Rc2 {[%clk 0:00:28]} 30. h4 {[%clk 0:00:44]}  Rxd2 {[%clk 0:00:26]} 31. Rxd2 {[%clk 0:00:45]}  g5 {[%clk 0:00:27]} 32. hxg5 {[%clk 0:00:45]}  hxg5 {[%clk 0:00:28]} 33. g3 {[%clk 0:00:39]}  Rc4 {[%clk 0:00:27]} 34. f4 {[%clk 0:00:38]}  gxf4+ {[%clk 0:00:25]} 35. gxf4 {[%clk 0:00:39]}  Ra4 {[%clk 0:00:25]} 36. f5 {[%clk 0:00:29]}  Nc5 {[%clk 0:00:25]} 37. Nf6 {[%clk 0:00:24]}  Kg7 {[%clk 0:00:17]} 38. e5 {[%clk 0:00:23]}  Ra3+ {[%clk 0:00:15]} 39. Kf4 {[%clk 0:00:23]}  Ra4+ {[%clk 0:00:15]} 40. Kg5 {[%clk 0:00:17]}  Ra3 {[%clk 0:00:08]} 41. Rd8 {[%clk 0:00:15]}  Rg3+ {[%clk 0:00:03]} 42. Kf4 {[%clk 0:00:15]}  Ra3 {[%clk 0:00:04]} 43. Rg8+ {[%clk 0:00:14]}  Kh6 {[%clk 0:00:04]} 44. Ng4+ {[%clk 0:00:13]}  Kh7 {[%clk 0:00:04]} 45. Nf6+ {[%clk 0:00:13]}  Kh6 {[%clk 0:00:04]} 46. Rh8+ {[%clk 0:00:09]}  Kg7 {[%clk 0:00:05]} 47. Rh7+ {[%clk 0:00:06]}  Kf8 {[%clk 0:00:05]} 48. Rh8+ {[%clk 0:00:06]}  Kg7 {[%clk 0:00:05]} 49. Rg8+ {[%clk 0:00:05]}  Kh6 {[%clk 0:00:06]} 1/2-1/2


[Site "https://www.chess.com"]

[Event "Titled Tuesday Blitz July 26 Late 2022"]
[White "Wachinger, Guenther"]
[Black "Sarkar, Justin"]
[WhiteFideId "4604261"]
[BlackFideId "2010011"]
[WhiteElo "2212"]
[BlackElo "2006"]
[Result "1-0"]
[Round "07"]
[TimeControl "180+1"]
[Date "2022.07.27"]
[WhiteClock "0:00:09"]
[BlackClock "0:00:01"]

1. e4 {[%clk 0:01:21]}  e5 {[%clk 0:02:54]} 2. Nf3 {[%clk 0:01:20]}  Nc6 {[%clk 0:02:54]} 3. Nc3 {[%clk 0:01:19]}  Nf6 {[%clk 0:02:51]} 4. a3 {[%clk 0:01:19]}  g6 {[%clk 0:02:38]} 5. Bc4 {[%clk 0:01:18]}  Bg7 {[%clk 0:02:36]} 6. O-O {[%clk 0:01:17]}  O-O {[%clk 0:02:35]} 7. d3 {[%clk 0:01:13]}  d6 {[%clk 0:02:29]} 8. Ne2 {[%clk 0:01:11]}  Bg4 {[%clk 0:02:25]} 9. c3 {[%clk 0:01:01]}  Bxf3 {[%clk 0:02:08]} 10. gxf3 {[%clk 0:01:00]}  d5 {[%clk 0:02:07]} 11. Ba2 {[%clk 0:00:52]}  h6 {[%clk 0:02:01]} 12. Ng3 {[%clk 0:00:46]}  Qd7 {[%clk 0:01:52]} 13. Kg2 {[%clk 0:00:44]}  Rad8 {[%clk 0:01:49]} 14. Qe2 {[%clk 0:00:41]}  Kh7 {[%clk 0:01:40]} 15. b4 {[%clk 0:00:30]}  Ne7 {[%clk 0:01:23]} 16. c4 {[%clk 0:00:28]}  d4 {[%clk 0:01:11]} 17. f4 {[%clk 0:00:20]}  exf4 {[%clk 0:01:05]} 18. Bxf4 {[%clk 0:00:21]}  Nfg8 {[%clk 0:01:00]} 19. c5 {[%clk 0:00:20]}  f5 {[%clk 0:00:50]} 20. e5 {[%clk 0:00:20]}  Nd5 {[%clk 0:00:44]} 21. Bxd5 {[%clk 0:00:17]}  Qxd5+ {[%clk 0:00:43]} 22. Qf3 {[%clk 0:00:18]}  Qxf3+ {[%clk 0:00:37]} 23. Kxf3 {[%clk 0:00:18]}  g5 {[%clk 0:00:37]} 24. Bd2 {[%clk 0:00:16]}  Bxe5 {[%clk 0:00:36]} 25. Rfe1 {[%clk 0:00:16]}  Rd5 {[%clk 0:00:31]} 26. Kg2 {[%clk 0:00:15]}  Ne7 {[%clk 0:00:23]} 27. f4 {[%clk 0:00:12]}  gxf4 {[%clk 0:00:20]} 28. Bxf4 {[%clk 0:00:13]}  Ng6 {[%clk 0:00:17]} 29. Bxe5 {[%clk 0:00:12]}  Nxe5 {[%clk 0:00:17]} 30. Rad1 {[%clk 0:00:10]}  f4 {[%clk 0:00:16]} 31. Ne4 {[%clk 0:00:10]}  f3+ {[%clk 0:00:16]} 32. Kf1 {[%clk 0:00:08]}  Ng4 {[%clk 0:00:14]} 33. Rd2 {[%clk 0:00:08]}  Rh5 {[%clk 0:00:10]} 34. Ng3 {[%clk 0:00:07]}  Ne3+ {[%clk 0:00:07]} 35. Kg1 {[%clk 0:00:05]}  f2+ {[%clk 0:00:04]} 36. Rxf2 {[%clk 0:00:05]}  Rxf2 {[%clk 0:00:03]} 37. Kxf2 {[%clk 0:00:06]}  Rxh2+ {[%clk 0:00:03]} 38. Kf3 {[%clk 0:00:07]}  Ra2 {[%clk 0:00:02]} 39. Ke4 {[%clk 0:00:07]}  Rxa3 {[%clk 0:00:01]} 40. Rh1 {[%clk 0:00:07]}  Kg6 {[%clk 0:00:01]} 41. Kxd4 {[%clk 0:00:07]}  Nc2+ {[%clk 0:00:01]} 42. Kc4 {[%clk 0:00:06]}  Ne3+ {[%clk 0:00:01]} 43. Kd4 {[%clk 0:00:06]}  Nc2+ {[%clk 0:00:02]} 44. Ke4 {[%clk 0:00:06]}  Nxb4 {[%clk 0:00:02]} 45. d4 {[%clk 0:00:07]}  Nc6 {[%clk 0:00:02]} 46. Nf5 {[%clk 0:00:08]}  Nd8 {[%clk 0:00:02]} 47. Rxh6+ {[%clk 0:00:09]}  Kg5 {[%clk 0:00:02]} 48. Rh8 {[%clk 0:00:09]}  Ne6 {[%clk 0:00:02]} 49. Ke5 {[%clk 0:00:09]}  Ng7 {[%clk 0:00:01]} 50. Rg8 {[%clk 0:00:09]}  Re3+ {[%clk 0:00:01]} 51. Nxe3 {[%clk 0:00:09]} 1-0


[Site "https://www.chess.com"]

[Event "Titled Tuesday Blitz July 26 Late 2022"]
[White "Yuan, Qingyu"]
[Black "Chen, Justin"]
[WhiteFideId "8609772"]
[BlackFideId "2098199"]
[WhiteElo "2359"]
[BlackElo "2289"]
[Result "0-1"]
[Round "07"]
[TimeControl "180+1"]
[Date "2022.07.26"]
[WhiteClock "0:00:09"]
[BlackClock "0:00:12"]

1. e4 {[%clk 0:03:00]}  e5 {[%clk 0:02:57]} 2. Nf3 {[%clk 0:03:01]}  Nc6 {[%clk 0:02:58]} 3. Bc4 {[%clk 0:03:02]}  Bc5 {[%clk 0:02:57]} 4. d3 {[%clk 0:03:02]}  Nf6 {[%clk 0:02:57]} 5. Bg5 {[%clk 0:03:03]}  h6 {[%clk 0:02:57]} 6. Bh4 {[%clk 0:03:04]}  O-O {[%clk 0:02:53]} 7. c3 {[%clk 0:02:52]}  Be7 {[%clk 0:02:47]} 8. Bg3 {[%clk 0:02:47]}  Re8 {[%clk 0:02:26]} 9. O-O {[%clk 0:02:03]}  Bf8 {[%clk 0:02:12]} 10. Re1 {[%clk 0:01:59]}  d6 {[%clk 0:01:56]} 11. h3 {[%clk 0:01:57]}  a6 {[%clk 0:01:38]} 12. a4 {[%clk 0:01:54]}  Be6 {[%clk 0:01:35]} 13. Nbd2 {[%clk 0:01:54]}  Qd7 {[%clk 0:01:26]} 14. b4 {[%clk 0:01:37]}  Rad8 {[%clk 0:01:20]} 15. b5 {[%clk 0:01:22]}  Na5 {[%clk 0:01:16]} 16. Bxe6 {[%clk 0:01:12]}  Qxe6 {[%clk 0:01:16]} 17. c4 {[%clk 0:01:10]}  Ra8 {[%clk 0:01:11]} 18. Qc2 {[%clk 0:01:08]}  b6 {[%clk 0:01:10]} 19. Nf1 {[%clk 0:01:00]}  Nb7 {[%clk 0:01:09]} 20. Ne3 {[%clk 0:00:53]}  a5 {[%clk 0:01:00]} 21. Bh4 {[%clk 0:00:46]}  Nc5 {[%clk 0:00:47]} 22. Bxf6 {[%clk 0:00:45]}  Qxf6 {[%clk 0:00:48]} 23. Nd5 {[%clk 0:00:45]}  Qd8 {[%clk 0:00:46]} 24. Nd2 {[%clk 0:00:42]}  Ne6 {[%clk 0:00:38]} 25. Nb3 {[%clk 0:00:39]}  Be7 {[%clk 0:00:35]} 26. g3 {[%clk 0:00:33]}  Rf8 {[%clk 0:00:35]} 27. Kg2 {[%clk 0:00:26]}  Qd7 {[%clk 0:00:34]} 28. Re3 {[%clk 0:00:26]}  f5 {[%clk 0:00:31]} 29. Nd2 {[%clk 0:00:14]}  f4 {[%clk 0:00:27]} 30. Ree1 {[%clk 0:00:14]}  Nd4 {[%clk 0:00:20]} 31. Qd1 {[%clk 0:00:13]}  Bg5 {[%clk 0:00:10]} 32. h4 {[%clk 0:00:08]}  fxg3 {[%clk 0:00:10]} 33. fxg3 {[%clk 0:00:07]}  Bxd2 {[%clk 0:00:10]} 34. Qxd2 {[%clk 0:00:07]}  Nf3 {[%clk 0:00:08]} 35. Qe2 {[%clk 0:00:07]}  Nxe1+ {[%clk 0:00:07]} 36. Rxe1 {[%clk 0:00:08]}  Rf7 {[%clk 0:00:07]} 37. Rf1 {[%clk 0:00:08]}  Raf8 {[%clk 0:00:07]} 38. Rxf7 {[%clk 0:00:07]}  Qxf7 {[%clk 0:00:05]} 39. Ne3 {[%clk 0:00:07]}  Qe6 {[%clk 0:00:04]} 40. Qh5 {[%clk 0:00:06]}  Rf7 {[%clk 0:00:02]} 41. Nf5 {[%clk 0:00:06]}  Kh7 {[%clk 0:00:02]} 42. Ne3 {[%clk 0:00:05]}  Qg6 {[%clk 0:00:02]} 43. Qe2 {[%clk 0:00:05]}  Qf6 {[%clk 0:00:02]} 44. Nd5 {[%clk 0:00:05]}  Qe6 {[%clk 0:00:02]} 45. Qh5 {[%clk 0:00:05]}  g6 {[%clk 0:00:01]} 46. Qe2 {[%clk 0:00:05]}  Kg7 {[%clk 0:00:02]} 47. Ne3 {[%clk 0:00:05]}  Rf8 {[%clk 0:00:02]} 48. Ng4 {[%clk 0:00:06]}  Qf7 {[%clk 0:00:03]} 49. Ne3 {[%clk 0:00:04]}  Qf6 {[%clk 0:00:01]} 50. Nd5 {[%clk 0:00:02]}  Qf7 {[%clk 0:00:02]} 51. Ne3 {[%clk 0:00:03]}  Kh7 {[%clk 0:00:02]} 52. h5 {[%clk 0:00:03]}  gxh5 {[%clk 0:00:01]} 53. Nf5 {[%clk 0:00:04]}  Qg6 {[%clk 0:00:01]} 54. Kh3 {[%clk 0:00:04]}  Rf7 {[%clk 0:00:02]} 55. Nh4 {[%clk 0:00:04]}  Qg4+ {[%clk 0:00:02]} 56. Qxg4 {[%clk 0:00:04]}  hxg4+ {[%clk 0:00:03]} 57. Kxg4 {[%clk 0:00:05]}  Rf2 {[%clk 0:00:04]} 58. Nf5 {[%clk 0:00:04]}  Rd2 {[%clk 0:00:04]} 59. Ne7 {[%clk 0:00:05]}  Rxd3 {[%clk 0:00:04]} 60. Nd5 {[%clk 0:00:05]}  Rd4 {[%clk 0:00:04]} 61. Nxc7 {[%clk 0:00:06]}  Rxe4+ {[%clk 0:00:04]} 62. Kf5 {[%clk 0:00:04]}  Rxc4 {[%clk 0:00:05]} 63. Nd5 {[%clk 0:00:04]}  Rxa4 {[%clk 0:00:04]} 64. Nxb6 {[%clk 0:00:05]}  Rb4 {[%clk 0:00:05]} 65. Nc8 {[%clk 0:00:03]}  Rxb5 {[%clk 0:00:04]} 66. Nxd6 {[%clk 0:00:04]}  Rb3 {[%clk 0:00:04]} 67. g4 {[%clk 0:00:03]}  a4 {[%clk 0:00:05]} 68. Kxe5 {[%clk 0:00:02]}  a3 {[%clk 0:00:05]} 69. Ne4 {[%clk 0:00:02]}  Re3 {[%clk 0:00:05]} 70. Kf4 {[%clk 0:00:02]}  Rxe4+ {[%clk 0:00:05]} 71. Kxe4 {[%clk 0:00:03]}  a2 {[%clk 0:00:06]} 72. Kf4 {[%clk 0:00:03]}  a1=Q {[%clk 0:00:06]} 73. Kg3 {[%clk 0:00:04]}  Qe5+ {[%clk 0:00:06]} 74. Kh4 {[%clk 0:00:04]}  Qg5+ {[%clk 0:00:07]} 75. Kh3 {[%clk 0:00:05]}  Kg6 {[%clk 0:00:08]} 76. Kh2 {[%clk 0:00:05]}  Kf6 {[%clk 0:00:09]} 77. Kg3 {[%clk 0:00:05]}  Ke5 {[%clk 0:00:09]} 78. Kf3 {[%clk 0:00:06]}  Qf4+ {[%clk 0:00:09]} 79. Kg2 {[%clk 0:00:07]}  Qxg4+ {[%clk 0:00:10]} 80. Kh2 {[%clk 0:00:08]}  Kf4 {[%clk 0:00:10]} 81. Kh1 {[%clk 0:00:08]}  Kf3 {[%clk 0:00:11]} 82. Kh2 {[%clk 0:00:09]}  Qg2# {[%clk 0:00:12]} 0-1


[Site "https://www.chess.com"]

[Event "Titled Tuesday Blitz July 26 Late 2022"]
[White "Zhukova, Natalia"]
[Black "Golubenko, Valentina"]
[WhiteFideId "14101513"]
[BlackFideId "4501993"]
[WhiteElo "2296"]
[BlackElo "2164"]
[Result "1-0"]
[Round "07"]
[TimeControl "180+1"]
[Date "2022.07.27"]
[WhiteClock "0:00:09"]
[BlackClock "0:00:13"]

1. c4 {[%clk 0:02:55]}  g6 {[%clk 0:02:58]} 2. d4 {[%clk 0:02:54]}  Bg7 {[%clk 0:02:58]} 3. e4 {[%clk 0:02:55]}  c5 {[%clk 0:02:59]} 4. d5 {[%clk 0:02:55]}  e6 {[%clk 0:02:59]} 5. Nf3 {[%clk 0:02:47]}  exd5 {[%clk 0:02:59]} 6. exd5 {[%clk 0:02:44]}  d6 {[%clk 0:02:59]} 7. Bd3 {[%clk 0:02:43]}  Nf6 {[%clk 0:02:58]} 8. h3 {[%clk 0:02:42]}  O-O {[%clk 0:02:58]} 9. O-O {[%clk 0:02:43]}  Re8 {[%clk 0:02:54]} 10. Nc3 {[%clk 0:02:42]}  a6 {[%clk 0:02:54]} 11. a4 {[%clk 0:02:41]}  Nbd7 {[%clk 0:02:54]} 12. Bf4 {[%clk 0:02:39]}  Ne5 {[%clk 0:02:54]} 13. Be2 {[%clk 0:02:18]}  Bf5 {[%clk 0:02:34]} 14. Re1 {[%clk 0:02:02]}  Ne4 {[%clk 0:02:18]} 15. Nxe4 {[%clk 0:01:33]}  Bxe4 {[%clk 0:02:18]} 16. Ng5 {[%clk 0:01:32]}  Bf5 {[%clk 0:02:13]} 17. g4 {[%clk 0:01:32]}  Bd7 {[%clk 0:01:58]} 18. Ne4 {[%clk 0:01:22]}  Qc7 {[%clk 0:01:47]} 19. Bg5 {[%clk 0:01:15]}  f5 {[%clk 0:01:42]} 20. Nf6+ {[%clk 0:01:06]}  Bxf6 {[%clk 0:01:35]} 21. Bxf6 {[%clk 0:01:07]}  fxg4 {[%clk 0:01:35]} 22. hxg4 {[%clk 0:01:07]}  Rf8 {[%clk 0:01:13]} 23. g5 {[%clk 0:01:01]}  Rae8 {[%clk 0:01:11]} 24. Ra3 {[%clk 0:00:45]}  Qc8 {[%clk 0:01:05]} 25. Re3 {[%clk 0:00:40]}  Nf7 {[%clk 0:00:42]} 26. Bf1 {[%clk 0:00:33]}  Qc7 {[%clk 0:00:20]} 27. Qd2 {[%clk 0:00:25]}  Qc8 {[%clk 0:00:18]} 28. Be7 {[%clk 0:00:18]}  Ne5 {[%clk 0:00:17]} 29. Bxf8 {[%clk 0:00:08]}  Rxf8 {[%clk 0:00:17]} 30. Rxe5 {[%clk 0:00:07]}  dxe5 {[%clk 0:00:17]} 31. Rxe5 {[%clk 0:00:08]}  Bh3 {[%clk 0:00:15]} 32. Qe3 {[%clk 0:00:04]}  Qg4+ {[%clk 0:00:14]} 33. Qg3 {[%clk 0:00:04]}  Qxg3+ {[%clk 0:00:13]} 34. fxg3 {[%clk 0:00:04]}  Bxf1 {[%clk 0:00:13]} 35. d6 {[%clk 0:00:03]}  Bxc4 {[%clk 0:00:13]} 36. Rxc5 {[%clk 0:00:03]}  Be6 {[%clk 0:00:13]} 37. Rc7 {[%clk 0:00:03]}  Rd8 {[%clk 0:00:12]} 38. Rxb7 {[%clk 0:00:02]}  Rxd6 {[%clk 0:00:13]} 39. b4 {[%clk 0:00:02]}  Rd7 {[%clk 0:00:11]} 40. Rb6 {[%clk 0:00:02]}  Bc4 {[%clk 0:00:10]} 41. Rc6 {[%clk 0:00:02]}  Bd3 {[%clk 0:00:10]} 42. Rb6 {[%clk 0:00:01]}  Kf7 {[%clk 0:00:10]} 43. Kf2 {[%clk 0:00:01]}  Ke7 {[%clk 0:00:10]} 44. Ke3 {[%clk 0:00:02]}  Rd6 {[%clk 0:00:10]} 45. Rxd6 {[%clk 0:00:02]}  Kxd6 {[%clk 0:00:10]} 46. Kxd3 {[%clk 0:00:03]}  Kd5 {[%clk 0:00:10]} 47. Kc3 {[%clk 0:00:03]}  Kd6 {[%clk 0:00:10]} 48. Kd4 {[%clk 0:00:03]}  Kc6 {[%clk 0:00:10]} 49. Kc4 {[%clk 0:00:04]}  Kd6 {[%clk 0:00:10]} 50. b5 {[%clk 0:00:05]}  axb5+ {[%clk 0:00:11]} 51. axb5 {[%clk 0:00:05]}  Kc7 {[%clk 0:00:10]} 52. Kc5 {[%clk 0:00:06]}  Kd7 {[%clk 0:00:11]} 53. b6 {[%clk 0:00:06]}  Kc8 {[%clk 0:00:11]} 54. Kc6 {[%clk 0:00:06]}  Kb8 {[%clk 0:00:11]} 55. b7 {[%clk 0:00:07]}  h5 {[%clk 0:00:11]} 56. gxh6 {[%clk 0:00:07]}  g5 {[%clk 0:00:11]} 57. h7 {[%clk 0:00:07]}  g4 {[%clk 0:00:12]} 58. h8=Q+ {[%clk 0:00:08]}  Ka7 {[%clk 0:00:13]} 59. Qa8# {[%clk 0:00:09]} 1-0


[Site "https://www.chess.com"]